[Event "Late-Titled-Tuesday-Blitz-October-03-2023"]
[Site "Chess.com"]
[Date "2023.10.03"]
[Round "5"]
[White "arminmusovic"]
[Black "ETTrainer"]
[Result "1-0"]
[WhiteElo "2508"]
[BlackElo "2275"]
[TimeControl "180+1"]
[EndTime "14:52:47 PDT"]
[Termination "arminmusovic won by resignation"]

1. a3 {[%clk 0:03:00.9]} 1... d5 {[%clk 0:02:53.4]} 2. Nc3 {[%clk 0:03:01.8]}
2... g6 {[%clk 0:02:53.4]} 3. e4 {[%clk 0:03:00.9]} 3... dxe4 {[%clk 0:02:52.8]}
4. Nxe4 {[%clk 0:03:01.2]} 4... Bg7 {[%clk 0:02:53.4]} 5. Nf3 {[%clk 0:03:00.7]}
5... Nf6 {[%clk 0:02:53.5]} 6. Nxf6+ {[%clk 0:03:00.3]} 6... Bxf6 {[%clk
0:02:54.4]} 7. d4 {[%clk 0:02:59.8]} 7... Bg4 {[%clk 0:02:53.3]} 8. Bh6 {[%clk
0:02:56.6]} 8... Nc6 {[%clk 0:02:47.6]} 9. c3 {[%clk 0:02:56]} 9... Qd5 {[%clk
0:02:11.4]} 10. h3 {[%clk 0:02:35.5]} 10... Bxf3 {[%clk 0:02:08]} 11. Qxf3
{[%clk 0:02:36.4]} 11... Qxf3 {[%clk 0:02:03.5]} 12. gxf3 {[%clk 0:02:37.3]}
12... e5 {[%clk 0:01:56.9]} 13. d5 {[%clk 0:02:32.7]} 13... Ne7 {[%clk
0:01:56.8]} 14. Bb5+ {[%clk 0:02:31.2]} 14... Kd8 {[%clk 0:01:52.5]} 15. O-O-O
{[%clk 0:02:27.7]} 15... Nf5 {[%clk 0:01:51.3]} 16. Be3 {[%clk 0:02:21.2]} 16...
Nxe3 {[%clk 0:01:40.9]} 17. fxe3 {[%clk 0:02:20]} 17... Ke7 {[%clk 0:01:40.9]}
18. h4 {[%clk 0:02:13.9]} 18... h5 {[%clk 0:01:33.6]} 19. Kd2 {[%clk 0:02:01.4]}
19... Rhd8 {[%clk 0:01:23]} 20. Ke2 {[%clk 0:02:01.2]} 20... a6 {[%clk
0:01:16.8]} 21. Ba4 {[%clk 0:01:51.4]} 21... Bg7 {[%clk 0:01:08.5]} 22. c4
{[%clk 0:01:45]} 22... Rab8 {[%clk 0:00:51.8]} 23. b4 {[%clk 0:01:33.1]} 23...
b5 {[%clk 0:00:49.9]} 24. Bb3 {[%clk 0:01:33]} 24... bxc4 {[%clk 0:00:45.8]} 25.
Bxc4 {[%clk 0:01:33.9]} 25... a5 {[%clk 0:00:45.6]} 26. bxa5 {[%clk 0:01:33.2]}
26... Rb2+ {[%clk 0:00:32.6]} 27. Rd2 {[%clk 0:01:33.2]} 27... Rdb8 {[%clk
0:00:33.1]} 28. Rc1 {[%clk 0:01:30.3]} 28... Kd6 {[%clk 0:00:20.5]} 29. Rcc2
{[%clk 0:01:20]} 29... Rb1 {[%clk 0:00:17]} 30. a4 {[%clk 0:01:14.9]} 30... Rh1
{[%clk 0:00:16.9]} 31. a6 {[%clk 0:01:13.9]} 31... Bf8 {[%clk 0:00:12.1]} 32.
Bb5 {[%clk 0:01:14]} 32... Ra8 {[%clk 0:00:09.2]} 33. Rc6+ {[%clk 0:01:12.9]}
33... Kd7 {[%clk 0:00:09.3]} 34. Rc1+ {[%clk 0:01:11.4]} 1-0

[Event "Late-Titled-Tuesday-Blitz-October-03-2023"]
[Site "Chess.com"]
[Date "2023.10.03"]
[Round "5"]
[White "szachuspl"]
[Black "Veleamater"]
[Result "1-0"]
[WhiteElo "2530"]
[BlackElo "2322"]
[TimeControl "180+1"]
[EndTime "14:52:48 PDT"]
[Termination "szachuspl won by resignation"]

1. d4 {[%clk 0:03:00.9]} 1... g6 {[%clk 0:02:36.8]} 2. c4 {[%clk 0:03:00.1]}
2... Bg7 {[%clk 0:02:36]} 3. Nc3 {[%clk 0:03:00.7]} 3... d6 {[%clk 0:02:35.9]}
4. e4 {[%clk 0:03:00.9]} 4... Nf6 {[%clk 0:02:35.6]} 5. Be2 {[%clk 0:03:01.4]}
5... Nc6 {[%clk 0:02:35]} 6. d5 {[%clk 0:03:00.4]} 6... Ne5 {[%clk 0:02:34.2]}
7. h3 {[%clk 0:03:01]} 7... a6 {[%clk 0:02:32.8]} 8. Be3 {[%clk 0:03:00.8]} 8...
h5 {[%clk 0:02:32.1]} 9. f4 {[%clk 0:02:59.3]} 9... Ned7 {[%clk 0:02:31.3]} 10.
Nf3 {[%clk 0:02:59.3]} 10... b6 {[%clk 0:02:29.7]} 11. O-O {[%clk 0:02:58.2]}
11... O-O {[%clk 0:02:27.8]} 12. Nd4 {[%clk 0:02:54.7]} 12... Qe8 {[%clk
0:02:20]} 13. f5 {[%clk 0:02:51.2]} 13... Ne5 {[%clk 0:02:16.1]} 14. b3 {[%clk
0:02:47]} 14... Nh7 {[%clk 0:02:15.4]} 15. Qd2 {[%clk 0:02:40]} 15... e6 {[%clk
0:02:14.8]} 16. Rf2 {[%clk 0:02:33.7]} 16... exf5 {[%clk 0:02:13.8]} 17. exf5
{[%clk 0:02:33.7]} 17... g5 {[%clk 0:02:03.4]} 18. Bxh5 {[%clk 0:02:25.6]} 18...
Bf6 {[%clk 0:01:54.5]} 19. Re1 {[%clk 0:02:23.2]} 19... Qd8 {[%clk 0:01:52.1]}
20. Ne4 {[%clk 0:02:21.4]} 20... Kh8 {[%clk 0:01:49.4]} 21. Bd1 {[%clk
0:02:20.9]} 21... Rg8 {[%clk 0:01:44.8]} 22. g4 {[%clk 0:02:20.9]} 22... Be7
{[%clk 0:01:38.8]} 23. Kg2 {[%clk 0:02:21.1]} 23... f6 {[%clk 0:01:38.6]} 24.
Bc2 {[%clk 0:02:18.9]} 24... Bd7 {[%clk 0:01:37.4]} 25. Ng3 {[%clk 0:02:19]}
25... Qe8 {[%clk 0:01:35.4]} 26. Ne6 {[%clk 0:02:19.1]} 26... Rc8 {[%clk
0:01:29.9]} 27. Bd4 {[%clk 0:02:18.1]} 27... c5 {[%clk 0:01:25.7]} 28. dxc6
{[%clk 0:02:10.6]} 28... Bxc6+ {[%clk 0:01:25.1]} 29. Be4 {[%clk 0:02:10.5]}
29... Bxe4+ {[%clk 0:01:23.9]} 30. Nxe4 {[%clk 0:02:09.6]} 30... Qc6 {[%clk
0:01:23.8]} 31. Bxe5 {[%clk 0:02:01.6]} 31... dxe5 {[%clk 0:01:21.3]} 32. Qd5
{[%clk 0:02:01.4]} 32... b5 {[%clk 0:01:16.5]} 33. Qxc6 {[%clk 0:01:55.9]} 33...
Rxc6 {[%clk 0:01:15.5]} 34. c5 {[%clk 0:01:56.8]} 34... b4 {[%clk 0:01:13.5]}
35. Rd2 {[%clk 0:01:54.7]} 35... Rgc8 {[%clk 0:01:13]} 36. Rd7 {[%clk
0:01:53.2]} 36... Re8 {[%clk 0:00:56.9]} 37. Rc1 {[%clk 0:01:51.8]} 37... Nf8
{[%clk 0:00:55]} 38. Nxf8 {[%clk 0:01:51.7]} 38... Bxf8 {[%clk 0:00:54.9]} 39.
Rc4 {[%clk 0:01:50.7]} 39... a5 {[%clk 0:00:53.8]} 40. Kf3 {[%clk 0:01:51.1]}
40... Rec8 {[%clk 0:00:50.3]} 41. Ke3 {[%clk 0:01:50.6]} 41... Kg8 {[%clk
0:00:46.6]} 42. Kf3 {[%clk 0:01:49.1]} 42... Kh8 {[%clk 0:00:44.4]} 43. Rf7
{[%clk 0:01:46.7]} 43... Bg7 {[%clk 0:00:44]} 44. Rc2 {[%clk 0:01:42.8]} 44...
Kg8 {[%clk 0:00:41.5]} 45. Ra7 {[%clk 0:01:42.9]} 45... Bf8 {[%clk 0:00:35.7]}
46. Rxa5 {[%clk 0:01:42.1]} 46... Kf7 {[%clk 0:00:36]} 47. Rc4 {[%clk
0:01:40.5]} 47... Rd8 {[%clk 0:00:29.2]} 48. Ke2 {[%clk 0:01:38.9]} 48... Rd4
{[%clk 0:00:25.7]} 49. Rxd4 {[%clk 0:01:37.4]} 49... exd4 {[%clk 0:00:25.7]} 50.
Kd3 {[%clk 0:01:38.1]} 50... Rc8 {[%clk 0:00:20.5]} 51. Ra7+ {[%clk 0:01:36.8]}
51... Ke8 {[%clk 0:00:13.3]} 52. Nxf6+ {[%clk 0:01:36.9]} 1-0

[Event "Late-Titled-Tuesday-Blitz-October-03-2023"]
[Site "Chess.com"]
[Date "2023.10.03"]
[Round "5"]
[White "Onthequiet"]
[Black "Elbebiber"]
[Result "1-0"]
[WhiteElo "2403"]
[BlackElo "2148"]
[TimeControl "180+1"]
[EndTime "14:52:49 PDT"]
[Termination "Onthequiet won by resignation"]

1. d4 {[%clk 0:03:00.9]} 1... Nf6 {[%clk 0:02:58.3]} 2. Nf3 {[%clk 0:03:00.3]}
2... e6 {[%clk 0:02:56.9]} 3. a3 {[%clk 0:02:49.5]} 3... d5 {[%clk 0:02:54]} 4.
c4 {[%clk 0:02:47.3]} 4... c5 {[%clk 0:02:44.6]} 5. cxd5 {[%clk 0:02:46.5]} 5...
Nxd5 {[%clk 0:02:44.1]} 6. e4 {[%clk 0:02:44.4]} 6... Nf6 {[%clk 0:02:35.6]} 7.
Bb5+ {[%clk 0:02:43.8]} 7... Bd7 {[%clk 0:02:31.9]} 8. Bxd7+ {[%clk 0:02:36.5]}
8... Nbxd7 {[%clk 0:02:30.3]} 9. Nc3 {[%clk 0:02:35.7]} 9... cxd4 {[%clk
0:02:20.8]} 10. Nxd4 {[%clk 0:02:35.7]} 10... a6 {[%clk 0:02:03.6]} 11. O-O
{[%clk 0:02:33.5]} 11... Bc5 {[%clk 0:01:57.3]} 12. Be3 {[%clk 0:02:30.9]} 12...
O-O {[%clk 0:01:53.9]} 13. Rc1 {[%clk 0:02:29.9]} 13... Rc8 {[%clk 0:01:50.2]}
14. Qe2 {[%clk 0:02:27.8]} 14... h6 {[%clk 0:01:37.3]} 15. Rfd1 {[%clk
0:02:27.6]} 15... Qe7 {[%clk 0:01:36.7]} 16. b4 {[%clk 0:02:23.2]} 16... Bb6
{[%clk 0:01:29.7]} 17. f3 {[%clk 0:02:19.2]} 17... Rfd8 {[%clk 0:01:26.6]} 18.
Na4 {[%clk 0:02:16.1]} 18... Ba7 {[%clk 0:01:23.8]} 19. Nb3 {[%clk 0:02:08.8]}
19... Bxe3+ {[%clk 0:01:21.9]} 20. Qxe3 {[%clk 0:02:08.8]} 20... Ne5 {[%clk
0:01:20.3]} 21. Nb6 {[%clk 0:02:04.7]} 21... Rxc1 {[%clk 0:01:18.1]} 22. Qxc1
{[%clk 0:02:01.7]} 22... Rxd1+ {[%clk 0:01:14]} 23. Qxd1 {[%clk 0:02:01.3]}
23... Qc7 {[%clk 0:01:13.1]} 24. Qd4 {[%clk 0:01:49.8]} 24... Nc6 {[%clk
0:01:04.5]} 25. Qe3 {[%clk 0:01:40.7]} 25... Ne5 {[%clk 0:00:54.2]} 26. Qc5
{[%clk 0:01:37.2]} 26... Nc6 {[%clk 0:00:52.3]} 27. Na5 {[%clk 0:01:31.6]} 27...
Nd7 {[%clk 0:00:42.8]} 28. Nxd7 {[%clk 0:01:28.9]} 28... Qxd7 {[%clk 0:00:42.8]}
29. Nxc6 {[%clk 0:01:29.2]} 29... Qxc6 {[%clk 0:00:42.5]} 30. Qxc6 {[%clk
0:01:27.8]} 30... bxc6 {[%clk 0:00:42.9]} 31. Kf2 {[%clk 0:01:28.7]} 31... Kf8
{[%clk 0:00:43.3]} 32. Ke3 {[%clk 0:01:29.3]} 32... e5 {[%clk 0:00:41.9]} 33.
Kd3 {[%clk 0:01:29.6]} 33... Ke7 {[%clk 0:00:42.4]} 34. Kc4 {[%clk 0:01:30]}
34... Kd6 {[%clk 0:00:42.9]} 35. a4 {[%clk 0:01:28.8]} 35... g6 {[%clk
0:00:39.7]} 36. g3 {[%clk 0:01:28.2]} 36... f5 {[%clk 0:00:36.6]} 37. h3 {[%clk
0:01:23.5]} 37... fxe4 {[%clk 0:00:33.3]} 38. fxe4 {[%clk 0:01:23.1]} 38... g5
{[%clk 0:00:33]} 39. g4 {[%clk 0:01:21.9]} 39... Kd7 {[%clk 0:00:31.1]} 40. Kc5
{[%clk 0:01:20.7]} 40... Kc7 {[%clk 0:00:31.2]} 41. a5 {[%clk 0:01:17.2]} 41...
Kd7 {[%clk 0:00:26.2]} 42. Kb6 {[%clk 0:01:16.6]} 42... Kd6 {[%clk 0:00:26.4]}
43. Kxa6 {[%clk 0:01:16.3]} 43... c5 {[%clk 0:00:27]} 44. bxc5+ {[%clk
0:01:15.9]} 44... Kxc5 {[%clk 0:00:27.5]} 45. Kb7 {[%clk 0:01:15.9]} 45... Kd4
{[%clk 0:00:27.1]} 46. a6 {[%clk 0:01:16]} 46... Kxe4 {[%clk 0:00:27.7]} 47. a7
{[%clk 0:01:16.3]} 1-0

[Event "Late-Titled-Tuesday-Blitz-October-03-2023"]
[Site "Chess.com"]
[Date "2023.10.03"]
[Round "5"]
[White "KamilGrycel"]
[Black "crazy_but_lazy"]
[Result "0-1"]
[WhiteElo "2462"]
[BlackElo "2587"]
[TimeControl "180+1"]
[EndTime "14:52:51 PDT"]
[Termination "crazy_but_lazy won by resignation"]

1. d4 {[%clk 0:02:59]} 1... f5 {[%clk 0:02:47.8]} 2. h3 {[%clk 0:02:56.9]} 2...
d5 {[%clk 0:02:45.6]} 3. g4 {[%clk 0:02:56.5]} 3... Nc6 {[%clk 0:02:41.8]} 4.
Nf3 {[%clk 0:02:49.2]} 4... Nf6 {[%clk 0:02:38.6]} 5. Qd3 {[%clk 0:02:37.4]}
5... Ne4 {[%clk 0:01:54.3]} 6. Ne5 {[%clk 0:02:16.9]} 6... Nxe5 {[%clk
0:01:49.2]} 7. dxe5 {[%clk 0:02:16.9]} 7... e6 {[%clk 0:01:38.3]} 8. Nc3 {[%clk
0:02:10.1]} 8... c6 {[%clk 0:01:25.5]} 9. Nxe4 {[%clk 0:02:02.6]} 9... fxe4
{[%clk 0:01:25.6]} 10. Qb3 {[%clk 0:01:40.8]} 10... Bc5 {[%clk 0:01:24.2]} 11.
Be3 {[%clk 0:01:37.3]} 11... d4 {[%clk 0:01:16]} 12. O-O-O {[%clk 0:01:36.2]}
12... O-O {[%clk 0:01:14]} 13. Qc4 {[%clk 0:01:25.2]} 13... Qd5 {[%clk
0:01:09.5]} 14. Qxd5 {[%clk 0:00:58.5]} 14... exd5 {[%clk 0:01:07.4]} 15. Bxd4
{[%clk 0:00:58.7]} 15... Bxd4 {[%clk 0:01:07.7]} 16. Rxd4 {[%clk 0:00:59.6]}
16... Rxf2 {[%clk 0:01:07.6]} 17. c4 {[%clk 0:00:57.1]} 17... Be6 {[%clk
0:01:04.9]} 18. cxd5 {[%clk 0:00:51.1]} 18... cxd5 {[%clk 0:01:03.8]} 19. Kd2
{[%clk 0:00:46.4]} 19... Raf8 {[%clk 0:01:00.5]} 20. Ke1 {[%clk 0:00:46.6]}
20... g5 {[%clk 0:00:47.3]} 21. Rd2 {[%clk 0:00:44]} 21... Kg7 {[%clk
0:00:41.5]} 22. e3 {[%clk 0:00:43.5]} 22... R2f3 {[%clk 0:00:40.6]} 23. Be2
{[%clk 0:00:34.4]} 23... Rxe3 {[%clk 0:00:40.4]} 24. Rc2 {[%clk 0:00:34.3]}
24... d4 {[%clk 0:00:39.5]} 25. Rc7+ {[%clk 0:00:33]} 25... Kg6 {[%clk 0:00:37]}
26. h4 {[%clk 0:00:27.9]} 26... d3 {[%clk 0:00:35.1]} 27. h5+ {[%clk 0:00:22.8]}
27... Kh6 {[%clk 0:00:35.6]} 28. Re7 {[%clk 0:00:21.9]} 28... Rxe2+ {[%clk
0:00:34.7]} 29. Kd1 {[%clk 0:00:22.5]} 29... Bxg4 {[%clk 0:00:34.9]} 0-1

[Event "Late-Titled-Tuesday-Blitz-October-03-2023"]
[Site "Chess.com"]
[Date "2023.10.03"]
[Round "5"]
[White "scandalgod"]
[Black "Nekoo04"]
[Result "1-0"]
[WhiteElo "2473"]
[BlackElo "2283"]
[TimeControl "180+1"]
[EndTime "14:52:59 PDT"]
[Termination "scandalgod won on time"]

1. d4 {[%clk 0:02:57.5]} 1... d5 {[%clk 0:02:59.1]} 2. c4 {[%clk 0:02:57.5]}
2... e6 {[%clk 0:02:59.6]} 3. Nf3 {[%clk 0:02:57]} 3... Nf6 {[%clk 0:02:59.4]}
4. g3 {[%clk 0:02:57.5]} 4... Bb4+ {[%clk 0:02:57.9]} 5. Bd2 {[%clk 0:02:56.4]}
5... Be7 {[%clk 0:02:58.1]} 6. Bg2 {[%clk 0:02:56.6]} 6... O-O {[%clk
0:02:58.5]} 7. Qc2 {[%clk 0:02:55.8]} 7... Nbd7 {[%clk 0:02:57.7]} 8. h4 {[%clk
0:02:55.7]} 8... c6 {[%clk 0:02:57.1]} 9. Nc3 {[%clk 0:02:54.4]} 9... dxc4
{[%clk 0:02:41.1]} 10. O-O {[%clk 0:02:49.5]} 10... b5 {[%clk 0:02:12.9]} 11.
Rfd1 {[%clk 0:02:42]} 11... Bb7 {[%clk 0:02:09.4]} 12. Ne5 {[%clk 0:02:41.2]}
12... Nxe5 {[%clk 0:02:05.4]} 13. dxe5 {[%clk 0:02:40.3]} 13... Nd5 {[%clk
0:02:05.7]} 14. Ne4 {[%clk 0:02:24.9]} 14... c5 {[%clk 0:01:57.3]} 15. Bg5
{[%clk 0:02:05]} 15... h6 {[%clk 0:01:29.2]} 16. Bxe7 {[%clk 0:01:56.4]} 16...
Qxe7 {[%clk 0:01:30.1]} 17. Nd6 {[%clk 0:01:49.8]} 17... a6 {[%clk 0:00:45.9]}
18. Qc1 {[%clk 0:01:36.4]} 18... f6 {[%clk 0:00:37.8]} 19. b3 {[%clk 0:01:33.3]}
19... fxe5 {[%clk 0:00:29.5]} 20. Nxb7 {[%clk 0:01:29.7]} 20... Qxb7 {[%clk
0:00:27.9]} 21. bxc4 {[%clk 0:01:28.5]} 21... bxc4 {[%clk 0:00:27.1]} 22. Qxc4
{[%clk 0:01:28]} 22... Rfd8 {[%clk 0:00:24]} 23. Bh3 {[%clk 0:01:01.2]} 23...
Qf7 {[%clk 0:00:17.4]} 24. Qg4 {[%clk 0:00:57.7]} 24... Rd6 {[%clk 0:00:14.5]}
25. Qe4 {[%clk 0:00:52.5]} 25... Rf8 {[%clk 0:00:14]} 26. Rf1 {[%clk 0:00:46.1]}
26... Qf6 {[%clk 0:00:07.8]} 27. Rac1 {[%clk 0:00:43.4]} 1-0

[Event "Late-Titled-Tuesday-Blitz-October-03-2023"]
[Site "Chess.com"]
[Date "2023.10.03"]
[Round "5"]
[White "remi04"]
[Black "Mesa_1"]
[Result "1-0"]
[WhiteElo "2855"]
[BlackElo "2623"]
[TimeControl "180+1"]
[EndTime "14:53:02 PDT"]
[Termination "remi04 won by resignation"]

1. c4 {[%clk 0:03:00.9]} 1... e6 {[%clk 0:02:55.6]} 2. Nc3 {[%clk 0:03:00.3]}
2... d5 {[%clk 0:02:56.1]} 3. e3 {[%clk 0:03:00.9]} 3... Nf6 {[%clk 0:02:55.8]}
4. Nf3 {[%clk 0:03:01.4]} 4... c6 {[%clk 0:02:49.7]} 5. b3 {[%clk 0:03:00.8]}
5... Nbd7 {[%clk 0:02:48.7]} 6. Bb2 {[%clk 0:03:01.1]} 6... Be7 {[%clk
0:02:48.6]} 7. Be2 {[%clk 0:03:00.6]} 7... O-O {[%clk 0:02:49]} 8. Qc2 {[%clk
0:02:54.9]} 8... Re8 {[%clk 0:02:48.3]} 9. Rg1 {[%clk 0:02:54]} 9... b5 {[%clk
0:02:43.9]} 10. cxb5 {[%clk 0:02:39.9]} 10... Bb7 {[%clk 0:02:43.5]} 11. g4
{[%clk 0:02:34.5]} 11... cxb5 {[%clk 0:02:41.1]} 12. Bxb5 {[%clk 0:02:23.4]}
12... Rc8 {[%clk 0:02:37.6]} 13. Qd1 {[%clk 0:02:21.6]} 13... Ne4 {[%clk
0:02:19.5]} 14. Nxe4 {[%clk 0:01:50]} 14... dxe4 {[%clk 0:02:20.4]} 15. Nd4
{[%clk 0:01:48.5]} 15... Ne5 {[%clk 0:02:12.4]} 16. Nxe6 {[%clk 0:01:38.2]}
16... fxe6 {[%clk 0:01:57.5]} 17. Bxe5 {[%clk 0:01:36.8]} 17... Qd5 {[%clk
0:01:46]} 18. Bxe8 {[%clk 0:01:22]} 18... Qxe5 {[%clk 0:01:46.5]} 19. Ba4 {[%clk
0:01:09.8]} 19... Qxh2 {[%clk 0:01:37.9]} 20. Rf1 {[%clk 0:01:08.1]} 20... Ba6
{[%clk 0:01:32.7]} 21. Rc1 {[%clk 0:01:07.2]} 21... Rf8 {[%clk 0:01:13.3]} 22.
Rc4 {[%clk 0:01:06.1]} 22... Bxc4 {[%clk 0:00:55.5]} 23. bxc4 {[%clk 0:01:07]}
23... Rxf2 {[%clk 0:00:18.6]} 24. Rxf2 {[%clk 0:00:34.9]} 24... Qg1+ {[%clk
0:00:18.6]} 25. Ke2 {[%clk 0:00:35.1]} 25... Qxg4+ {[%clk 0:00:17.9]} 26. Kf1
{[%clk 0:00:34.2]} 26... Qh3+ {[%clk 0:00:15]} 27. Kg1 {[%clk 0:00:31.4]} 27...
Bh4 {[%clk 0:00:15.5]} 28. Rg2 {[%clk 0:00:30.3]} 1-0

[Event "Late-Titled-Tuesday-Blitz-October-03-2023"]
[Site "Chess.com"]
[Date "2023.10.03"]
[Round "5"]
[White "santosalberto1987"]
[Black "tomozupan"]
[Result "1-0"]
[WhiteElo "2511"]
[BlackElo "2243"]
[TimeControl "180+1"]
[EndTime "14:53:03 PDT"]
[Termination "santosalberto1987 won on time"]

1. e4 {[%clk 0:03:00.9]} 1... e5 {[%clk 0:02:59.1]} 2. Nf3 {[%clk 0:03:01]} 2...
Nc6 {[%clk 0:02:59.2]} 3. Bc4 {[%clk 0:03:01.5]} 3... Bc5 {[%clk 0:02:58.2]} 4.
c3 {[%clk 0:03:01.5]} 4... Nf6 {[%clk 0:02:57.5]} 5. d3 {[%clk 0:03:01.9]} 5...
d6 {[%clk 0:02:57.1]} 6. O-O {[%clk 0:03:01.7]} 6... O-O {[%clk 0:02:55.5]} 7.
h3 {[%clk 0:02:57.5]} 7... a6 {[%clk 0:02:45.6]} 8. Bb3 {[%clk 0:02:55.1]} 8...
Qe7 {[%clk 0:02:43]} 9. Bg5 {[%clk 0:02:52.1]} 9... h6 {[%clk 0:02:41.7]} 10.
Bh4 {[%clk 0:02:52.1]} 10... Be6 {[%clk 0:02:40.3]} 11. Bc2 {[%clk 0:02:50.5]}
11... Ba7 {[%clk 0:02:39.2]} 12. Nbd2 {[%clk 0:02:50.4]} 12... d5 {[%clk
0:02:34.9]} 13. Re1 {[%clk 0:02:49.1]} 13... Qd6 {[%clk 0:02:32.6]} 14. Bxf6
{[%clk 0:02:48.2]} 14... gxf6 {[%clk 0:02:32.4]} 15. Qe2 {[%clk 0:02:42.2]}
15... Ne7 {[%clk 0:02:20.3]} 16. Nf1 {[%clk 0:02:42]} 16... dxe4 {[%clk
0:02:08.1]} 17. dxe4 {[%clk 0:02:42]} 17... Ng6 {[%clk 0:02:04.7]} 18. Rad1
{[%clk 0:02:26.9]} 18... Qb6 {[%clk 0:02:03.9]} 19. Bb3 {[%clk 0:01:58.8]} 19...
Nf4 {[%clk 0:01:59.8]} 20. Qc2 {[%clk 0:01:56.9]} 20... Bxh3 {[%clk 0:01:12.9]}
21. gxh3 {[%clk 0:01:56.6]} 21... Nxh3+ {[%clk 0:01:12.7]} 22. Kg2 {[%clk
0:01:46]} 22... Nf4+ {[%clk 0:00:35.7]} 23. Kg3 {[%clk 0:01:13.8]} 23... Kh8
{[%clk 0:00:30.1]} 24. Ne3 {[%clk 0:01:13.2]} 24... Rg8+ {[%clk 0:00:28.5]} 25.
Kh2 {[%clk 0:01:12.8]} 25... f5 {[%clk 0:00:20.3]} 26. exf5 {[%clk 0:01:04.5]}
26... Qf6 {[%clk 0:00:19]} 27. Rg1 {[%clk 0:01:04.4]} 27... Bxe3 {[%clk
0:00:17.7]} 28. fxe3 {[%clk 0:01:04]} 28... Nh5 {[%clk 0:00:11.6]} 29. Rxg8+
{[%clk 0:00:59.8]} 29... Rxg8 {[%clk 0:00:09.9]} 30. Rg1 {[%clk 0:01:00.7]}
30... Rxg1 {[%clk 0:00:09]} 31. Kxg1 {[%clk 0:01:00.7]} 31... Qg7+ {[%clk
0:00:08.8]} 32. Qg2 {[%clk 0:00:58.5]} 32... Qf8 {[%clk 0:00:03.1]} 33. Nxe5
{[%clk 0:00:53.4]} 1-0

[Event "Late-Titled-Tuesday-Blitz-October-03-2023"]
[Site "Chess.com"]
[Date "2023.10.03"]
[Round "5"]
[White "ural58"]
[Black "German_Bazeev"]
[Result "1-0"]
[WhiteElo "2520"]
[BlackElo "2764"]
[TimeControl "180+1"]
[EndTime "14:53:04 PDT"]
[Termination "ural58 won on time"]

1. e4 {[%clk 0:02:56.4]} 1... c5 {[%clk 0:02:17.2]} 2. b3 {[%clk 0:02:54.9]}
2... Nf6 {[%clk 0:02:17.3]} 3. e5 {[%clk 0:02:54.4]} 3... Nd5 {[%clk 0:02:18]}
4. Nc3 {[%clk 0:02:54.7]} 4... Nxc3 {[%clk 0:02:17.5]} 5. dxc3 {[%clk
0:02:54.8]} 5... g6 {[%clk 0:02:18.4]} 6. Nf3 {[%clk 0:02:53.8]} 6... Bg7 {[%clk
0:02:19]} 7. Bc4 {[%clk 0:02:54.2]} 7... O-O {[%clk 0:02:19.3]} 8. O-O {[%clk
0:02:54.3]} 8... Nc6 {[%clk 0:02:19.9]} 9. Bf4 {[%clk 0:02:53.6]} 9... Qc7
{[%clk 0:02:11.4]} 10. Re1 {[%clk 0:02:47.7]} 10... Nd8 {[%clk 0:02:11]} 11. Qd2
{[%clk 0:02:35.8]} 11... Ne6 {[%clk 0:02:10]} 12. Bh6 {[%clk 0:02:33.7]} 12...
b6 {[%clk 0:02:09.9]} 13. Rad1 {[%clk 0:02:31.9]} 13... Rb8 {[%clk 0:01:45.5]}
14. a4 {[%clk 0:02:29.5]} 14... a6 {[%clk 0:01:42.5]} 15. Bxg7 {[%clk
0:02:28.6]} 15... Kxg7 {[%clk 0:01:42.4]} 16. Qd3 {[%clk 0:02:26.9]} 16... Ra8
{[%clk 0:01:27.1]} 17. h4 {[%clk 0:02:18.4]} 17... Ra7 {[%clk 0:01:21.3]} 18.
Ng5 {[%clk 0:02:09.2]} 18... h6 {[%clk 0:01:17.9]} 19. Nh3 {[%clk 0:02:02.4]}
19... Ra8 {[%clk 0:00:52.1]} 20. f4 {[%clk 0:02:00.1]} 20... b5 {[%clk
0:00:46.5]} 21. axb5 {[%clk 0:01:58.6]} 21... axb5 {[%clk 0:00:47.4]} 22. Bxb5
{[%clk 0:01:56.5]} 22... c4 {[%clk 0:00:40.3]} 23. Bxc4 {[%clk 0:01:56]} 23...
Nc5 {[%clk 0:00:35.9]} 24. Qe3 {[%clk 0:01:55.1]} 24... e6 {[%clk 0:00:34.8]}
25. h5 {[%clk 0:01:52.5]} 25... Bb7 {[%clk 0:00:33.1]} 26. Nf2 {[%clk
0:01:42.2]} 26... Na4 {[%clk 0:00:28.8]} 27. hxg6 {[%clk 0:01:10.2]} 27... fxg6
{[%clk 0:00:28.7]} 28. Qg3 {[%clk 0:01:08.3]} 28... Nc5 {[%clk 0:00:19]} 29. b4
{[%clk 0:01:02.7]} 29... Na4 {[%clk 0:00:06.7]} 30. Bd3 {[%clk 0:01:01.7]} 30...
Rf5 {[%clk 0:00:07.4]} 31. Bxf5 {[%clk 0:00:59.4]} 31... exf5 {[%clk 0:00:08.3]}
32. e6 {[%clk 0:00:59.3]} 32... dxe6 {[%clk 0:00:06.6]} 33. Rxe6 {[%clk
0:00:58.6]} 33... Qf7 {[%clk 0:00:07.5]} 34. Rde1 {[%clk 0:00:55.5]} 1-0